bitfinex-derivatives/quotes_SOLF0:USTF0_20250909
["timestamp","ask_amount","ask_price","bid_price","bid_amount"]
[1757428875830,3.09554817,214.63,214.48,7.77]
[1757428876026,7.05,214.64,214.48,7.77]
[1757428876431,7.05,214.64,214.5,7.77]
[1757428879334,7.05,214.64,214.35,6.08264274]
[1757428879335,7.07,214.62,214.45,6.08264274]
[1757428879540,7.07,214.6,214.42,13.16]
[1757428880133,3.0952077,214.59,214.41,6.08264274]
[1757428880339,7.07,214.6,214.41,36.12264274]
[1757428881237,7.07,214.6,214.42,7.77]
[1757428881433,7.07,214.58,214.42,7.77]
[1757428882232,3.09254702,214.57,214.42,7.77]
[1757428882433,10.1625716,214.56,214.42,7.77]
[1757428882631,3.09247829,214.55,214.42,7.77]
[1757428882830,7.07,214.56,214.42,7.77]
[1757428883032,3.09248575,214.55,214.42,7.77]
[1757428883236,7.07,214.56,214.42,7.77]
[1757428885236,7.07,214.54,214.42,7.77]
[1757428885942,7.07,214.59,214.43,6.08264274]
[1757428886243,7.07,214.59,214.44,7.77]
[1757428886547,3.08741822,214.58,214.44,7.77]
[1757428886839,7.07,214.59,214.44,7.77]
[1757428888546,7.07,214.64,214.46,7.77]
[1757428888737,3.08694346,214.63,214.46,7.77]
[1757428888942,7.07,214.64,214.46,7.77]
[1757428889148,3.08694808,214.63,214.46,7.77]
[1757428889343,7.07,214.64,214.46,7.77]
[1757428890648,7.07,214.64,214.47,6.08264274]
[1757428890843,7.07,214.64,214.48,7.77]
[1757428891942,7.07,214.62,214.48,7.77]
[1757428892141,7.07,214.6,214.43,7.77]
[1757428892545,7.07,214.58,214.43,7.77]
[1757428900952,7.07,214.66,214.47,7.77]
[1757428901150,3.19984741,214.65,214.47,7.77]
[1757428901455,7.07,214.66,214.47,7.77]
[1757428901648,3.19994001,214.65,214.47,7.77]
[1757428901845,7.07,214.66,214.47,7.77]
[1757428902050,3.19994001,214.65,214.47,7.77]
[1757428902256,7.07,214.68,214.47,7.77]
[1757428902456,7.07,214.66,214.47,7.77]
[1757428902655,7.07,214.66,214.51,7.77]
[1757428902854,7.07,214.66,214.55,7.77]
[1757428903356,7.07,214.72,214.55,7.77]
[1757428903651,3.20097588,214.71,214.55,7.77]
[1757428903856,3.20097588,214.7,214.55,7.77]
[1757428904052,7.07,214.72,214.55,7.77]
[1757428904257,7.07,214.7,214.55,7.77]
[1757428905060,7.07,214.68,214.55,7.77]
[1757428905256,6.08264274,214.7,214.48,319.38264274]
[1757428905257,7.07,214.66,214.49,7.34]
[1757428905456,7.07,214.64,214.49,7.34]
[1757428907862,7.07,214.61,214.45,7.34]
[1757428908260,7.07,214.61,214.48,6.08264274]
[1757428908464,7.07,214.61,214.49,7.34]
[1757428908864,177.20702425,214.65,214.49,7.34]
[1757428909567,7.07,214.66,214.49,7.34]
[1757428909762,7.07,214.64,214.49,7.34]
[1757428912571,7.07,214.64,214.53,7.34]
[1757428916166,3.21235693,214.63,214.53,7.34]
[1757428916367,7.07,214.64,214.53,7.34]
[1757428916671,3.21466058,214.63,214.53,7.34]
[1757428916970,7.07,214.64,214.53,7.34]
[1757428917171,3.21468864,214.63,214.53,7.34]
[1757428917472,3.21468864,214.62,214.53,7.34]
[1757428917672,7.07,214.64,214.53,7.34]
[1757428917865,3.21737154,214.63,214.54,7.34]
[1757428918070,5.04212871,214.73,214.58,7.34]
[1757428918369,3.21882919,214.72,214.61,13.42264274]
[1757428918671,3.21882919,214.71,214.61,13.42264274]
[1757428918870,7.07,214.72,214.61,13.42264274]
[1757428919166,3.21804151,214.71,214.61,13.42264274]
[1757428919363,7.07,214.72,214.61,13.42264274]
[1757428919974,7.07,214.72,214.62,7.34]
[1757428920168,7.07,214.8,214.62,7.34]
[1757428920371,7.07,214.78,214.62,7.34]
[1757428920576,3.21662401,214.77,214.62,13.42264274]
[1757428920870,3.21662401,214.76,214.62,13.42264274]
[1757428921067,3.21662401,214.75,214.62,13.42264274]
[1757428921271,3.21662401,214.74,214.62,13.42264274]
[1757428921577,3.21662401,214.73,214.62,13.42264274]
[1757428921768,7.07,214.78,214.62,13.42264274]
[1757428921968,3.21502428,214.77,214.62,13.42264274]
[1757428922169,3.21502428,214.76,214.63,7.34]
[1757428922373,3.21502428,214.75,214.63,7.34]
[1757428922566,10.28502428,214.74,214.63,7.34]
[1757428922773,3.21502428,214.73,214.63,7.34]
[1757428922971,3.21502428,214.72,214.63,7.34]
[1757428923171,7.07,214.74,214.63,7.34]
[1757428923366,3.21241176,214.73,214.63,7.34]
[1757428923571,7.07,214.82,214.69,7.34]
[1757428923876,320.82319307,214.87,214.69,7.34]
[1757428923877,7.07,214.8,214.69,7.34]
[1757428924080,3.09929303,214.79,214.69,7.34]
[1757428924272,7.05,214.8,214.69,7.34]
[1757428927973,6.08264274,214.86,214.64,13.42264274]
[1757428927974,7.05,214.85,214.64,13.42264274]
[1757428928181,6.08264274,214.82,214.64,7.34]
[1757428928383,13.63546496,214.81,214.64,7.34]
[1757428928569,7.05,214.79,214.64,7.34]
[1757428928773,7.05,214.77,214.64,7.34]
[1757428928972,7.05,214.75,214.64,7.34]
[1757428929779,7.05,214.75,214.6,6.08264274]
[1757428929968,7.05,214.75,214.59,7.34]
[1757428930174,7.05,214.73,214.59,7.34]
[1757428930373,7.05,214.72,214.55,313.22]
[1757428930571,6.08264274,214.73,214.55,313.22]
[1757428930772,10.14128868,214.72,214.56,7.34]
[1757428931080,7.05,214.7,214.56,7.34]
[1757428932077,7.05,214.68,214.56,7.34]
[1757428932280,7.05,214.66,214.56,7.34]
[1757428932583,7.05,214.66,214.52,7.34]
[1757428932778,3.09046685,214.65,214.52,7.34]
[1757428932981,7.05,214.64,214.52,7.34]
[1757428934781,7.07,214.62,214.47,7.31]
[1757428934982,7.07,214.6,214.47,7.31]
[1757428935178,3.09065074,214.59,214.43,7.31]
[1757428935379,6.08264274,214.61,214.43,7.31]
[1757428935380,10.16065074,214.58,214.43,7.31]
[1757428935576,7.07,214.56,214.43,7.31]
[1757428937186,7.07,214.54,214.43,7.31]
[1757428938689,7.07,214.52,214.35,7.31]
[1757428939292,7.07,214.5,214.35,7.31]
[1757428939493,7.07,214.48,214.35,7.31]
[1757428939794,7.07,214.46,214.35,7.31]
[1757428941990,7.07,214.46,214.29,313.14]
[1757428942196,7.07,214.46,214.3,7.31]
[1757428947888,17.24854514,214.56,214.3,7.31]
[1757428948089,7.07,214.53,214.31,7.31]
[1757428948896,7.07,214.51,214.31,7.31]
[1757428949095,7.07,214.49,214.31,7.31]
[1757428949592,7.07,214.5,214.29,313.14]
[1757428949785,3.06515983,214.49,214.29,313.14]
[1757428950089,313.22,214.57,214.28,7.31]
[1757428950090,7.07,214.45,214.28,7.31]
[1757428950293,7.07,214.45,214.3,7.31]
[1757428953096,8.7,214.53,214.32,7.31]
[1757428953299,7.07,214.57,214.32,7.31]
[1757428953592,7.07,214.55,214.32,7.31]
[1757428953897,7.07,214.53,214.32,7.31]
[1757428954997,7.07,214.53,214.36,7.31]
[1757428956097,7.07,214.57,214.38,7.31]
[1757428956400,7.07,214.67,214.46,7.31]
[1757428956590,129.56,214.66,214.46,7.31]
[1757428956793,7.07,214.65,214.46,7.31]
[1757428959297,105.93,214.65,214.46,7.31]
[1757428962499,7.07,214.65,214.46,7.31]
[1757428962891,7.07,214.63,214.46,7.31]
[1757428964798,320.52,214.68,214.46,7.31]
[1757428965596,320.52,214.68,214.5,10.17854514]
[1757428965791,320.52,214.68,214.51,7.03]
[1757428968303,7.04,214.68,214.51,7.03]
[1757428968601,7.04,214.74,214.56,7.03]
[1757428969803,7.04,214.76,214.57,7.03]
[1757428970104,136.24,214.76,214.57,7.03]
[1757428970499,7.04,214.74,214.57,7.03]
[1757428971205,174.58807031,214.79,214.57,7.03]
[1757428971206,7.04,214.72,214.57,7.03]
[1757428979210,7.04,214.78,214.6,7.03]
[1757428983006,7.04,214.76,214.6,7.03]
[1757428983604,184.76661545,214.79,214.55,7.03]
[1757428983806,10.10842188,214.78,214.55,7.03]
[1757428984005,7.04,214.72,214.5,7.03]
[1757428984207,7.04,214.7,214.5,7.03]
[1757428984504,7.04,214.68,214.5,7.03]
[1757428985015,7.04,214.68,214.51,7.03]
[1757428987215,7.04,214.66,214.46,7.03]
[1757428987905,3.06669802,214.65,214.46,7.03]
[1757428988110,3.06660699,214.64,214.46,7.03]
[1757428988312,7.04,214.66,214.46,7.03]
[1757428988513,7.04,214.64,214.46,7.03]
[1757428988812,7.04,214.62,214.46,7.03]
[1757428989209,10.17854514,214.67,214.4,106.37]
[1757428989414,26.09,214.71,214.4,106.37]
[1757428989415,7.04,214.6,214.4,7.03]
[1757428989615,7.04,214.58,214.4,7.03]
[1757428989815,7.04,214.56,214.4,7.03]
[1757428992026,7.04,214.63,214.43,7.03]
[1757428992524,7.04,214.61,214.43,7.03]
[1757428992923,7.04,214.61,214.44,7.03]
[1757428994519,7.04,214.66,214.48,7.63]
[1757428995129,7.04,214.66,214.52,10.17854514]
[1757428995324,7.04,214.74,214.54,7.63]
[1757428995629,7.04,214.72,214.54,7.63]
[1757428995821,441.88,214.77,214.54,32.69]
[1757428996019,3.08152977,214.76,214.54,32.69]
[1757428996225,3.08152977,214.75,214.54,34.09]
[1757428996426,3.08152977,214.74,214.54,34.09]
[1757428996626,7.04,214.72,214.54,34.09]
[1757428996829,7.04,214.7,214.55,7.63]
[1757428998428,7.04,214.7,214.58,7.63]
[1757428998833,313.26,214.77,214.58,7.63]
[1757428999030,10.12937304,214.76,214.58,7.63]
[1757428999229,7.04,214.74,214.58,7.63]
[1757428999536,3.08937304,214.73,214.58,13.70780545]
[1757428999731,7.04,214.72,214.58,13.70780545]
[1757429000132,313.26,214.77,214.58,7.63]
[1757429000133,7.04,214.7,214.58,7.63]
[1757429000833,3.09150542,214.69,214.58,7.63]
[1757429001030,7.04,214.7,214.58,7.63]
[1757429001333,3.09152529,214.69,214.58,7.63]
[1757429001533,7.04,214.7,214.58,7.63]
[1757429001735,3.09244551,214.69,214.58,7.63]
[1757429001928,7.04,214.7,214.58,7.63]
[1757429002129,3.09250198,214.69,214.58,7.63]
[1757429002324,7.04,214.7,214.58,7.63]
[1757429002930,13.11780545,214.68,214.53,7.63]
[1757429003232,7.04,214.66,214.53,7.63]
[1757429003433,3.09252703,214.65,214.53,7.63]
[1757429003634,3.09252703,214.64,214.53,7.63]
[1757429003834,7.04,214.66,214.53,7.63]
[1757429004030,3.09183932,214.65,214.53,7.63]
[1757429004331,3.09183932,214.64,214.53,7.63]
[1757429004535,7.04,214.66,214.53,7.63]
[1757429004735,7.04,214.64,214.45,7.63]
[1757429004935,7.04,214.62,214.45,7.63]
[1757429005131,3.09205805,214.61,214.45,7.63]
[1757429005326,7.04,214.62,214.45,7.63]
[1757429005530,3.09213404,214.61,214.45,7.63]
[1757429005727,7.04,214.62,214.45,7.63]
[1757429005939,3.09213404,214.61,214.48,7.63]
[1757429006133,3.09213404,214.6,214.48,7.63]
[1757429006335,7.04,214.62,214.48,7.63]
[1757429006536,3.09214941,214.61,214.48,7.63]
[1757429006728,7.04,214.62,214.48,7.63]
[1757429006933,3.09240561,214.61,214.48,7.63]
[1757429007134,7.04,214.62,214.48,7.63]
[1757429007339,3.09279279,214.61,214.48,7.63]
[1757429007532,7.04,214.62,214.48,7.63]
[1757429009437,3.09306567,214.61,214.48,7.63]
[1757429009636,3.09306567,214.6,214.48,7.63]
[1757429009836,7.04,214.62,214.48,7.63]
[1757429010036,3.09309253,214.61,214.48,7.63]
[1757429010336,7.04,214.62,214.48,7.63]
[1757429010533,6.07780545,214.66,214.48,7.63]
[1757429010534,7.04,214.6,214.48,7.63]
[1757429011140,3.09245414,214.59,214.48,7.63]
[1757429011340,7.04,214.6,214.48,7.63]
[1757429013333,6.07780545,214.66,214.48,7.63]
[1757429013537,10.13238322,214.65,214.49,6.07780545]
[1757429013738,3.09238322,214.64,214.5,7.63]
[1757429015838,7.04,214.65,214.5,7.63]
[1757429019837,7.04,214.65,214.51,6.07780545]
[1757429020038,7.04,214.65,214.52,7.63]
[1757429024043,7.04,214.71,214.54,7.07]
[1757429024337,7.04,214.69,214.54,7.07]
[1757429024640,7.04,214.63,214.46,7.07]
[1757429024838,7.04,214.61,214.46,7.07]
[1757429025033,7.04,214.59,214.46,7.07]
[1757429027148,7.04,214.66,214.47,7.07]
[1757429027340,3.10174815,214.65,214.47,7.07]
[1757429027540,3.10174815,214.64,214.47,7.07]
[1757429027746,3.10174815,214.63,214.47,7.07]
[1757429027948,7.04,214.61,214.47,7.07]
[1757429028244,3.10147035,214.6,214.47,7.07]
[1757429028445,3.10207752,214.59,214.47,7.07]
[1757429028646,7.04,214.61,214.47,7.07]
[1757429028842,3.10204787,214.6,214.47,7.07]
[1757429029051,3.10204787,214.59,214.47,7.07]
[1757429029341,7.04,214.64,214.47,7.07]
[1757429029552,7.04,214.62,214.47,7.07]
[1757429029737,7.04,214.6,214.47,7.07]
[1757429029939,7.04,214.58,214.47,7.07]
[1757429030145,7.04,214.56,214.42,13.14780545]
[1757429030345,7.04,214.56,214.42,7.07]
[1757429033443,7.04,214.56,214.43,7.07]
[1757429033649,7.04,214.56,214.44,6.07780545]
[1757429033846,7.04,214.56,214.45,7.07]
[1757429035456,7.04,214.63,214.45,7.07]
[1757429035658,3.10174518,214.62,214.48,7.07]
[1757429035952,7.04,214.63,214.52,7.07]
[1757429036855,7.04,214.68,214.52,7.07]
[1757429037048,3.10292646,214.67,214.55,7.07]
[1757429037248,3.10292646,214.66,214.55,7.07]
[1757429037455,7.04,214.68,214.55,7.07]
[1757429037651,3.10363587,214.67,214.55,7.07]
[1757429037852,3.10363587,214.66,214.55,7.07]
[1757429038051,7.04,214.68,214.55,7.07]
[1757429038248,7.04,214.75,214.55,7.07]
[1757429038555,3.10464364,214.74,214.59,7.07]
[1757429038852,3.10522405,214.73,214.59,7.07]
[1757429039050,7.04,214.75,214.6,7.07]
[1757429040449,7.04,214.75,214.63,7.07]
[1757429040650,174.83192219,214.79,214.67,7.07]
[1757429040855,7.04,214.86,214.71,7.07]
[1757429041158,7.04,214.84,214.71,7.07]
[1757429041458,7.04,214.82,214.66,7.07]
[1757429041645,7.04,214.8,214.66,7.07]
[1757429041849,3.10152596,214.79,214.66,7.07]
[1757429042054,7.04,214.8,214.66,7.07]
[1757429042250,7.04,214.78,214.61,7.07]
[1757429042559,7.04,214.76,214.61,7.07]
[1757429042853,7.04,214.74,214.55,7.07]
[1757429043655,3.09882929,214.73,214.55,7.07]
[1757429043855,13.11780545,214.74,214.55,7.07]
[1757429044055,7.04,214.71,214.55,7.07]
[1757429044252,7.04,214.69,214.55,7.07]
[1757429044554,3.10456957,214.68,214.55,7.07]
[1757429044751,7.04,214.69,214.55,7.07]
[1757429046552,5.04212871,214.79,214.55,7.07]
[1757429046855,137.54506648,214.78,214.59,7.07]
[1757429047055,3.10506648,214.77,214.59,134.47]
[1757429047556,10.14506648,214.76,214.59,134.47]
[1757429047756,3.10506648,214.75,214.59,134.47]
[1757429047955,3.10506648,214.74,214.59,134.47]
[1757429048254,7.04,214.76,214.6,7.07]
[1757429048452,3.10393004,214.75,214.6,7.07]
[1757429048656,7.04,214.76,214.6,7.07]
[1757429048955,3.10388801,214.75,214.6,7.07]
[1757429049156,7.04,214.76,214.6,7.07]
[1757429049452,3.10374553,214.75,214.6,7.07]
[1757429049654,10.14282117,214.74,214.6,7.07]
[1757429049958,3.10282117,214.73,214.6,7.07]
[1757429050156,7.04,214.71,214.6,7.07]
[1757429050654,7.04,214.78,214.6,7.07]
[1757429050851,7.04,214.76,214.6,7.07]
[1757429051050,3.10233895,214.75,214.6,7.07]
[1757429051253,7.04,214.74,214.6,7.07]
[1757429051460,7.04,214.72,214.6,7.07]
[1757429051755,3.10233895,214.71,214.6,7.07]
[1757429051951,7.04,214.72,214.6,7.07]
[1757429052155,3.10231547,214.71,214.6,7.07]
[1757429052457,7.04,214.72,214.6,7.07]
[1757429053653,6.07780545,214.76,214.54,409.59780545]
[1757429053855,10.13187651,214.75,214.55,7.65]
[1757429054057,7.03,214.73,214.55,7.65]
[1757429054256,3.10187651,214.72,214.55,7.65]
[1757429054455,7.03,214.73,214.55,7.65]
[1757429054661,3.10179457,214.72,214.55,7.65]
[1757429054961,7.03,214.73,214.56,7.65]
[1757429055263,7.03,214.71,214.56,7.65]
[1757429056970,7.03,214.69,214.56,7.65]
[1757429057270,79.73780545,214.72,214.54,313.26]
[1757429057458,10.13194506,214.71,214.55,7.65]
[1757429057657,7.03,214.69,214.55,7.65]
[1757429058363,7.03,214.67,214.42,10.16534156]
[1757429058567,7.03,214.65,214.44,7.65]
[1757429058869,7.03,214.63,214.44,7.65]
[1757429059169,7.03,214.61,214.44,7.65]
[1757429059368,7.03,214.59,214.44,7.65]
[1757429059564,3.10100425,214.58,214.44,7.65]
[1757429059770,7.03,214.59,214.44,7.65]
[1757429059967,3.09836836,214.58,214.44,7.65]
[1757429060165,7.03,214.59,214.44,7.65]
[1757429060366,3.09708172,214.58,214.44,7.65]
[1757429060567,7.03,214.59,214.44,7.65]
[1757429060766,3.09677486,214.58,214.44,7.65]
[1757429060966,7.03,214.59,214.44,7.65]
[1757429062472,7.03,214.59,214.41,313.16]
[1757429062473,3.09557727,214.58,214.41,313.16]
[1757429062673,3.09557727,214.57,214.41,313.16]
[1757429062876,3.09557727,214.56,214.41,313.16]
[1757429063174,7.03,214.54,214.41,313.16]
[1757429064365,7.03,214.58,214.42,7.65]
[1757429064766,3.09301106,214.57,214.42,7.65]
[1757429064969,7.03,214.53,214.37,7.65]
[1757429065175,7.03,214.51,214.37,7.65]
[1757429066575,7.03,214.56,214.37,7.65]
[1757429066776,3.08957328,214.55,214.37,7.65]
[1757429066971,7.03,214.56,214.37,7.65]
[1757429067776,7.03,214.53,214.37,7.65]
[1757429068176,7.03,214.51,214.37,7.65]
[1757429069273,7.03,214.49,214.37,7.65]
[1757429069983,7.03,214.49,214.3,7.65]
[1757429070172,17.19534156,214.49,214.3,7.65]
[1757429070380,3.08245495,214.48,214.3,7.65]
[1757429070577,7.03,214.47,214.3,7.65]
[1757429074187,7.03,214.47,214.3,7.63]
[1757429078183,7.05,214.45,214.3,7.63]
[1757429082683,7.05,214.53,214.3,7.63]
[1757429084488,10.16534156,214.54,214.31,126.7]
[1757429084690,7.06,214.53,214.32,7.71]
[1757429086386,7.06,214.52,214.34,7.71]
[1757429088690,7.06,214.57,214.34,7.71]
[1757429088887,7.06,214.57,214.39,7.71]
[1757429090395,7.06,214.57,214.41,7.71]
[1757429090989,7.06,214.57,214.38,10.16534156]
[1757429091189,7.06,214.57,214.4,7.71]
[1757429091986,7.06,214.57,214.42,7.71]
[1757429092697,7.06,214.57,214.44,7.71]
[1757429094892,7.06,214.64,214.44,7.71]
[1757429095195,3.07792656,214.63,214.44,7.71]
[1757429095397,7.06,214.61,214.44,7.71]
[1757429097001,7.06,214.61,214.46,7.71]
[1757429097200,7.06,214.61,214.44,7.71]
[1757429097399,7.06,214.61,214.43,10.16534156]
[1757429097400,7.06,214.61,214.46,7.71]
[1757429097603,7.06,214.61,214.47,126.34]
[1757429097997,7.06,214.61,214.48,7.71]
[1757429099297,7.06,214.61,214.49,126.3]
[1757429099606,7.06,214.66,214.5,7.71]
[1757429099795,3.08560396,214.65,214.5,7.71]
[1757429099997,3.08560396,214.64,214.5,7.71]
[1757429100204,7.06,214.66,214.5,7.71]
[1757429100498,7.06,214.64,214.5,7.71]
[1757429100805,7.06,214.62,214.41,313.42]
[1757429101002,10.16534156,214.65,214.41,313.42]
[1757429101003,3.08516272,214.61,214.42,126.26]
[1757429101204,10.14516272,214.6,214.43,7.71]
[1757429101400,3.08684926,214.59,214.43,7.71]
[1757429101606,7.06,214.6,214.44,7.71]
[1757429102106,7.06,214.6,214.44,97.77]
[1757429102301,7.06,214.58,214.44,7.71]
[1757429102803,7.06,214.56,214.44,7.71]
[1757429103008,3.08142081,214.55,214.44,7.71]
[1757429103308,7.06,214.59,214.44,7.71]
[1757429103606,7.06,214.57,214.44,7.71]
[1757429103803,7.06,214.55,214.39,7.71]
[1757429104107,7.06,214.53,214.39,7.71]
[1757429104710,7.06,214.51,214.39,7.71]
[1757429105504,7.06,214.58,214.39,7.71]
[1757429105807,26.98,214.59,214.39,7.71]
[1757429105808,7.06,214.56,214.39,7.71]
[1757429106010,7.06,214.54,214.39,7.71]
[1757429106310,3.08292128,214.53,214.39,7.71]
[1757429106609,7.06,214.54,214.39,7.71]
[1757429107001,7.06,214.54,214.41,7.71]
[1757429107308,7.06,214.62,214.41,7.71]
[1757429107510,7.06,214.6,214.41,7.71]
[1757429107711,3.08343086,214.59,214.41,7.71]
[1757429108210,7.06,214.58,214.41,7.71]
[1757429108410,7.06,214.56,214.41,7.71]
[1757429108706,3.08335323,214.55,214.41,7.71]
[1757429109012,7.06,214.56,214.41,7.71]
[1757429109214,7.06,214.54,214.41,7.71]
[1757429109509,3.08265152,214.53,214.41,7.71]
[1757429109706,7.06,214.54,214.41,7.71]
[1757429109913,7.06,214.52,214.41,7.71]
[1757429110214,7.06,214.5,214.36,84.88]
[1757429110416,7.06,214.5,214.37,7.71]
[1757429111410,7.06,214.57,214.37,7.71]
[1757429111713,7.06,214.55,214.37,7.71]
[1757429111916,7.06,214.53,214.38,112.48]
[1757429112112,7.06,214.53,214.38,7.71]
[1757429112520,7.06,214.62,214.4,7.71]
[1757429112720,7.06,214.6,214.4,7.71]
[1757429113017,3.07976387,214.59,214.4,7.71]
[1757429113218,3.07976387,214.59,214.45,7.71]
[1757429113415,7.06,214.6,214.47,7.71]
[1757429114013,7.06,214.6,214.47,122.11]
[1757429114211,7.06,214.6,214.47,126.73]
[1757429114414,7.06,214.6,214.48,7.4]
[1757429114821,313.34,214.63,214.48,7.4]
[1757429115217,7.05,214.65,214.48,7.4]
[1757429115417,3.08043095,214.64,214.48,7.4]
[1757429115621,7.05,214.7,214.51,7.4]
[1757429115826,3.08037261,214.69,214.53,7.4]
[1757429116024,3.08037261,214.68,214.53,7.4]
[1757429116222,7.05,214.68,214.53,7.4]
[1757429116418,3.08062054,214.67,214.53,7.4]
[1757429116625,3.08004323,214.66,214.53,7.4]
[1757429116826,7.05,214.64,214.53,7.4]
[1757429119031,7.05,214.69,214.53,7.4]
[1757429119228,7.05,214.69,214.54,7.4]
[1757429119430,7.05,214.69,214.58,7.4]
[1757429119731,7.05,214.8,214.65,6.08304501]
[1757429119930,3.07926818,214.79,214.66,7.4]
[1757429120130,7.05,214.8,214.66,7.4]
[1757429120527,7.05,214.8,214.69,6.08304501]
[1757429120835,7.05,214.89,214.74,7.4]
[1757429121126,3.07873198,214.88,214.74,7.4]
[1757429121328,7.05,214.89,214.74,21.64]
[1757429121536,3.07299499,214.88,214.74,7.4]
[1757429121830,7.05,214.89,214.74,7.4]
[1757429122032,3.07229134,214.88,214.74,7.4]
[1757429122231,6.08304501,214.88,214.67,6.08304501]
[1757429122428,7.05,214.83,214.68,7.4]
[1757429122838,7.05,214.81,214.68,7.4]
[1757429123027,7.05,214.79,214.63,7.4]
[1757429123224,7.05,214.77,214.63,7.4]
[1757429123630,3.0663836,214.76,214.63,7.4]
[1757429123837,7.05,214.77,214.63,7.4]
[1757429124236,7.05,214.75,214.58,7.4]
[1757429124733,3.06575758,214.74,214.58,7.4]
[1757429124934,7.05,214.75,214.59,7.4]
[1757429125734,7.05,214.75,214.6,110.9]
[1757429125941,7.05,214.75,214.6,125.66]
[1757429126334,7.05,214.75,214.59,7.4]
[1757429126735,3.06482923,214.74,214.59,7.4]
[1757429126935,7.05,214.75,214.59,7.4]
[1757429127538,7.05,214.75,214.6,104.32]
[1757429127939,7.05,214.81,214.63,7.4]
[1757429128234,3.06617282,214.8,214.63,7.4]
[1757429128442,3.06617282,214.79,214.63,7.4]
[1757429128640,7.05,214.81,214.63,7.4]
[1757429128843,3.06577316,214.8,214.63,7.4]
[1757429129038,3.06577316,214.79,214.63,7.4]
[1757429129239,7.05,214.81,214.63,7.4]
[1757429129543,7.05,214.79,214.63,7.4]
[1757429129938,7.05,214.77,214.63,7.4]
[1757429130142,3.06531791,214.76,214.63,7.4]
[1757429130335,7.05,214.75,214.63,7.4]
[1757429130539,3.06492914,214.74,214.63,7.4]
[1757429130840,7.05,214.75,214.63,7.4]
[1757429133347,7.05,214.82,214.63,6.08304501]
[1757429133546,3.06902723,214.81,214.64,7.4]
[1757429133846,10.11902723,214.8,214.64,7.4]
[1757429134046,7.05,214.78,214.64,7.4]
[1757429134244,3.06902723,214.77,214.64,7.4]
[1757429134546,7.05,214.75,214.64,7.4]
[1757429136146,7.05,214.83,214.64,7.4]
[1757429136346,3.0714382,214.82,214.64,7.4]